bitfinex/quotes_ETHUSD_20240729
["timestamp","ask_amount","ask_price","bid_price","bid_amount"]
[1722271560514,3.0539,3274.5,3273.4,3.0549]
[1722271560515,3.05419,3274.2,3273.4,3.0549]
[1722271560673,3.05399,3274.4,3273.4,3.0549]
[1722271560875,2.477,3275.0,3273.3,2.289]
[1722271560876,5.7,3275.0,3273.3,2.289]
[1722271561109,3.05433,3274.1,3273.3,2.289]
[1722271561278,3.05411,3274.3,3273.3,2.5179]
[1722271561480,3.05393,3274.5,3273.6,3.05466]
[1722271561674,3.05363,3274.8,3273.6,3.05466]
[1722271561936,3.0,3274.9,3273.3,5.57283]
[1722271562080,3.0548,3273.6,3272.8,2.2535]
[1722271562275,3.0548,3273.6,3272.9,0.5309]
[1722271562530,3.05508,3273.3,3272.8,2.2535]
[1722271563020,3.0,3274.1,3272.2,5.50895]
[1722271563021,3.0552,3273.1,3272.2,5.50895]
[1722271563185,3.0552,3273.1,3272.2,2.453]
[1722271563390,3.0547,3273.7,3272.2,5.50898]
[1722271563391,3.05511,3273.2,3272.2,5.50898]
[1722271563585,3.0,3273.7,3272.2,5.50898]
[1722271563586,3.05492,3273.4,3272.3,3.606838]
[1722271563794,3.05502,3273.3,3272.4,3.05585]
[1722271564179,3.05502,3273.3,3272.3,0.550898]
[1722271564548,3.05542,3272.9,3272.2,2.453]
[1722271564822,3.0552,3273.1,3272.2,2.453]
[1722271565042,3.0548,3273.6,3272.4,3.05579]
[1722271565199,3.0548,3273.6,3272.7,3.05551]
[1722271565381,3.0548,3273.6,3272.8,0.305551]
[1722271565777,3.05457,3273.8,3272.9,3.05538]
[1722271566083,4.67807215,3274.7,3272.8,0.305551]
[1722271566084,3.05483,3273.5,3272.8,0.305551]
[1722271566405,3.05467,3273.7,3272.5,3.05575]
[1722271566615,3.05422,3274.2,3272.4,3.05585]
[1722271566616,3.05495,3273.4,3272.4,3.05585]
[1722271566788,3.05495,3273.4,3272.5,3.305585]
[1722271567121,3.05517,3273.2,3272.3,6.05595]
[1722271567330,3.05502,3273.3,3272.3,3.0]
[1722271567530,3.05502,3273.3,3272.2,2.453]
[1722271567531,3.05502,3273.3,3272.4,3.60115]
[1722271567687,3.05492,3273.4,3272.5,6.11685799]
[1722271567886,3.05492,3273.4,3272.4,0.5453]
[1722271567887,3.0554,3272.9,3272.4,0.5453]
[1722271568131,3.0554,3272.9,3272.2,2.453]
[1722271568132,3.05547,3272.9,3272.2,2.453]
[1722271568296,2.2968,3273.8,3272.2,2.453]
[1722271568297,3.05552,3272.8,3272.2,2.453]
[1722271568502,3.05535,3273.0,3272.2,2.453]
[1722271568678,3.05474,3273.6,3272.2,2.453]
[1722271568679,3.05539,3272.9,3272.2,2.453]
[1722271569009,3.05517,3273.2,3272.2,3.003917]
[1722271569177,3.05493,3273.4,3272.2,3.003917]
[1722271569178,3.05496,3273.4,3272.2,6.059947]
[1722271569411,3.05518,3273.2,3272.2,6.059947]
[1722271569714,3.05532,3273.0,3272.2,6.059947]
[1722271570048,3.05518,3273.2,3272.2,6.059947]
[1722271570049,3.05521,3273.1,3272.3,0.6059947]
[1722271570532,5.2968,3273.8,3272.4,3.05585]
[1722271570735,3.05502,3273.3,3272.4,3.05585]
[1722271571024,3.0,3273.8,3272.3,0.66710779]
[1722271571025,3.05527,3273.1,3272.3,0.66710779]
[1722271571226,3.05478,3273.6,3272.3,0.66710779]
[1722271571227,3.05496,3273.4,3272.4,3.42289248]
[1722271571414,3.05496,3273.4,3272.5,3.05576]
[1722271571800,3.05475,3273.6,3272.4,0.36710248]
[1722271571801,3.05475,3273.6,3272.6,3.11677601]
[1722271572000,3.05484,3273.5,3272.6,3.11677601]
[1722271572181,3.05475,3273.6,3272.7,0.3116776]
[1722271572381,3.05456,3273.8,3272.7,3.3672376]
[1722271572579,3.05458,3273.8,3272.9,3.05532]
[1722271572908,3.223,3274.6,3272.7,0.3116776]
[1722271573100,3.223,3274.6,3272.4,0.36710248]
[1722271573101,3.223,3274.0,3272.4,0.36710248]
[1722271573284,3.05547,3272.9,3272.4,0.36710248]
[1722271573485,3.05558,3272.7,3272.4,0.36710248]
[1722271573795,3.0552,3273.2,3272.4,0.36710248]
[1722271573984,3.0553,3273.0,3271.9,3.05629]
[1722271574336,3.05532,3273.0,3272.0,3.0562]
[1722271574486,3.05512,3273.2,3272.1,3.05611]
[1722271574887,3.05512,3273.2,3272.4,3.05584]
[1722271575234,3.05492,3273.4,3272.5,3.11681177]
[1722271575235,3.05498,3273.4,3272.5,3.11681177]
[1722271575434,3.05484,3273.5,3272.5,3.11681177]
[1722271575435,3.05502,3273.3,3272.5,3.11681177]
[1722271575590,3.05484,3273.5,3272.6,0.31168118]
[1722271575926,3.05415,3274.3,3272.7,2.52060564]
[1722271576082,0.09622619,3274.9,3273.5,3.05477]
[1722271576294,3.05388,3274.6,3273.7,3.05463]
[1722271576502,3.05415,3274.3,3273.6,2.3123]
[1722271576827,2.3388,3275.6,3273.6,2.3123]
[1722271576828,3.0539,3274.5,3273.6,5.36703]
[1722271577136,3.05373,3274.7,3273.6,2.3123]
[1722271577137,3.05377,3274.7,3273.6,2.3123]
[1722271577339,3.05395,3274.5,3273.6,5.36697]
[1722271577634,3.05425,3274.2,3273.2,3.05511]
[1722271577783,3.05412,3274.3,3273.4,3.05486]
[1722271577987,3.05374,3274.7,3273.8,3.05452]
[1722271578186,0.62307688,3275.5,3274.1,3.05422]
[1722271578187,3.05298,3275.5,3274.1,3.05422]
[1722271578500,3.0534,3275.1,3274.1,3.05422]
[1722271578701,3.05318,3275.3,3274.1,3.05422]
[1722271578942,5.39172,3275.6,3274.1,3.05422]
[1722271578943,3.0537,3274.8,3274.1,0.84212398]
[1722271579087,2.3388,3275.6,3274.0,2.3125798]
[1722271579088,3.05392,3274.5,3274.0,2.2515]
[1722271579293,3.05392,3274.5,3273.8,0.305452]
[1722271579294,3.05398,3274.5,3273.8,0.305452]
[1722271579605,3.05398,3274.5,3273.5,5.30633]
[1722271579606,6.10794,3274.5,3273.6,3.0]
[1722271579824,3.05308,3275.4,3273.8,3.05448]
[1722271579825,3.05366,3274.8,3273.8,3.05448]
[1722271580138,3.05365,3274.8,3273.9,0.31155688]
[1722271580306,8.5618,3275.6,3273.7,3.05464]
[1722271580504,3.05382,3274.6,3273.6,3.0]
[1722271580704,9.01474688,3275.6,3273.2,3.05503]
[1722271580705,3.05425,3274.2,3273.2,3.05503]
[1722271581225,3.05399,3274.4,3273.0,2.3104]
[1722271581226,3.0539,3274.5,3273.6,3.05466]
[1722271581387,3.05414,3274.3,3273.4,3.05485]
[1722271581590,3.05406,3274.4,3273.5,0.305485]
[1722271581820,6.05328,3275.2,3273.6,3.05473]
[1722271581821,3.05382,3274.6,3273.6,3.05473]
[1722271582131,3.05346,3275.0,3273.8,3.05455]
[1722271582364,3.05335,3275.1,3274.2,3.0541]
[1722271582687,3.79,3275.8,3274.2,3.0541]
[1722271582688,3.05325,3275.2,3274.2,3.0541]
[1722271582886,3.05306,3275.4,3274.3,0.06107726]
[1722271583128,3.05315,3275.3,3274.4,3.36544273]
[1722271583427,3.05315,3275.3,3274.5,0.06107184]
[1722271583803,3.0,3275.2,3274.5,0.06107184]
[1722271584319,3.0,3275.2,3274.5,3.05389]
[1722271584515,6.05325,3275.2,3274.4,0.31152273]
[1722271584724,3.05346,3275.0,3274.4,0.31152273]
[1722271585032,3.05335,3275.1,3274.2,3.05415]
[1722271585183,3.05335,3275.1,3274.0,3.05432]
[1722271585184,6.10678,3275.1,3274.1,3.0542]
[1722271585383,3.0,3275.2,3274.0,3.05432]
[1722271585384,3.05355,3274.9,3274.0,3.05432]
[1722271585619,3.0,3275.2,3273.9,0.54655364]
[1722271585873,3.05408,3274.4,3273.7,2.3499]
[1722271586170,3.05408,3274.4,3273.7,3.190367]
[1722271586326,3.05382,3274.6,3273.7,3.190367]
[1722271586675,3.05382,3274.6,3273.8,3.05448]
[1722271586971,3.0,3275.2,3273.7,6.244967]
[1722271587139,3.05366,3274.8,3273.7,6.244947]
[1722271587336,3.0,3275.3,3273.8,0.68557966]
[1722271587337,6.05317,3275.3,3273.8,0.68557966]
[1722271587591,6.05317,3275.3,3274.4,3.05395]
[1722271587729,3.0,3275.3,3274.5,3.11491191]
[1722271587929,6.10601,3275.5,3274.6,3.05379]
[1722271587930,3.05306,3275.4,3274.6,3.05379]
[1722271588275,3.05321,3275.3,3274.5,0.06107191]
[1722271588600,3.05307,3275.4,3274.6,3.36528819]
[1722271588727,3.05263,3275.9,3274.6,3.36528819]
[1722271588929,3.05263,3275.9,3274.7,2.3375719]
[1722271589130,3.05263,3275.9,3274.8,0.06106537]
[1722271589382,3.0527,3275.8,3274.8,0.63133573]
[1722271589695,2.96293049,3276.5,3274.8,3.05359]
[1722271589828,3.05331,3275.2,3274.7,2.2765]
[1722271590230,3.05308,3275.4,3274.7,2.2765]
[1722271590667,3.05291,3275.6,3274.7,2.2765]
[1722271591088,3.05275,3275.8,3274.9,3.05352]
[1722271591381,3.05275,3275.8,3274.8,0.06106829]
[1722271591382,3.05275,3275.8,3275.0,0.31145883]
[1722271591741,3.05252,3276.0,3275.0,3.36480883]
[1722271592071,0.09622619,3276.5,3275.1,3.11438133]
[1722271592281,3.05277,3275.8,3275.0,3.36487883]
[1722271592572,3.05216,3276.4,3275.1,0.70289402]
[1722271592744,3.05228,3276.3,3275.4,3.053]
[1722271593072,3.05228,3276.3,3275.5,3.11399306]
[1722271593283,3.05228,3276.3,3275.6,0.31139931]
[1722271593577,3.14827619,3276.5,3275.6,0.31139931]
[1722271593871,0.09622619,3276.5,3275.6,0.31139931]
[1722271594028,0.09622619,3276.5,3275.9,3.05259]
[1722271594264,3.05182,3276.8,3275.8,3.05267]
[1722271594265,3.05176,3276.8,3275.8,3.05267]
[1722271594491,3.05176,3276.8,3275.8,3.62179693]
[1722271594780,3.05121,3277.4,3275.8,3.68284586]
[1722271594987,3.05183,3276.8,3275.8,3.68278586]
[1722271595149,3.05183,3276.8,3275.8,0.63017586]
[1722271595359,3.0516,3277.0,3275.8,0.63017267]
[1722271595659,3.0,3276.9,3276.1,3.05239]
[1722271595845,6.05166,3276.9,3276.1,3.05239]
[1722271596174,6.05166,3276.9,3275.7,2.3272]
[1722271596175,3.223,3277.3,3275.7,2.3272]
[1722271596480,3.05169,3276.9,3275.8,0.06105057]
[1722271596643,3.05163,3277.0,3276.1,3.0524]
[1722271596829,3.05158,3277.0,3276.2,3.0523]
[1722271597034,3.05133,3277.3,3276.3,3.05222]
[1722271597276,6.05144,3277.2,3276.4,3.05212]
[1722271597435,3.05144,3277.2,3276.4,3.05212]
[1722271597848,3.223,3278.0,3276.4,3.05212]
[1722271597849,6.10249,3277.4,3276.4,3.05212]
[1722271598051,3.05064,3278.0,3276.5,3.113003]
[1722271598375,3.05073,3277.9,3277.1,3.05145]
[1722271598574,3.0504,3278.3,3277.1,3.05141]
[1722271598782,3.0504,3278.3,3277.2,3.11238947]
[1722271598933,3.05056,3278.1,3277.2,3.05137]
[1722271599128,3.04994,3278.8,3277.3,0.305137]
[1722271599129,3.05004,3278.7,3277.3,0.305137]
[1722271599369,3.05101,3277.6,3276.8,3.55]
[1722271599582,3.05004,3278.7,3276.8,3.55]
[1722271599583,3.05084,3277.8,3276.9,3.05164]
[1722271599796,3.05084,3277.8,3276.8,3.55]
[1722271599951,3.223,3278.6,3276.7,2.3644]
[1722271600133,3.05105,3277.6,3276.7,2.3644]
[1722271600330,3.05068,3278.0,3276.7,2.60084]
[1722271600580,3.223,3278.8,3276.7,2.3644]
[1722271600783,9.3572,3278.9,3276.7,2.3644]
[1722271600784,3.223,3278.6,3276.7,5.41618]
[1722271600936,3.223,3278.6,3277.1,3.05145]
[1722271600937,3.05081,3277.9,3277.1,3.05145]
[1722271601136,3.0,3277.8,3277.1,3.05145]
[1722271601362,3.0,3277.8,3277.2,0.305145]
[1722271601580,6.05085,3277.8,3277.2,0.305145]
[1722271601794,6.05085,3277.8,3276.8,3.05173]
[1722271601795,3.0,3277.8,3276.8,3.05173]
[1722271601962,3.0,3277.8,3276.9,3.05166]
[1722271602160,3.05099,3277.7,3276.7,5.41617]
[1722271602465,3.05099,3277.7,3276.7,5.41622]
[1722271602670,3.05099,3277.7,3276.8,3.05168]
[1722271602978,3.05099,3277.7,3276.9,0.541608]
[1722271603351,6.05082,3277.8,3276.9,3.593208]
[1722271603584,3.05082,3277.8,3277.0,3.05154]
[1722271603744,3.05075,3277.9,3277.1,3.05144]
[1722271603938,3.05093,3277.7,3276.9,3.65273145]
[1722271604138,3.05093,3277.7,3277.0,0.36527315]
[1722271604364,3.0,3278.3,3276.7,2.3644]
[1722271604365,6.223,3278.3,3276.7,2.3644]
[1722271604681,3.05098,3277.7,3276.7,2.3644]
[1722271604888,3.05077,3277.9,3277.0,3.05148]
[1722271605041,3.05077,3277.9,3277.1,3.05147]
[1722271605236,3.0,3278.3,3277.0,3.417744]
[1722271605441,3.05097,3277.7,3277.0,0.305148]
[1722271605680,3.0504,3278.3,3277.0,3.356708]
[1722271605681,3.05082,3277.8,3277.0,3.356708]
[1722271605886,3.05082,3277.8,3277.0,3.05156]
[1722271606042,6.10121,3278.1,3277.2,3.05138]
[1722271606244,3.05058,3278.1,3277.2,3.05138]
[1722271606545,3.05054,3278.1,3277.3,0.3112404]
[1722271606775,3.05054,3278.1,3277.3,3.3624704]
[1722271606975,3.05037,3278.3,3277.3,3.3624704]
[1722271606976,3.05037,3278.3,3277.4,3.05118]
[1722271607191,3.05108,3277.6,3276.8,3.05171]
[1722271607497,3.05144,3277.2,3276.7,2.3644]
[1722271607789,3.05078,3277.9,3276.9,3.05161]
[1722271608092,3.05078,3277.9,3276.7,2.90084]
[1722271608093,3.05078,3277.9,3277.0,3.05149]
[1722271608311,3.05075,3277.9,3277.0,3.05149]
[1722271608468,3.05088,3277.8,3276.8,3.05167]
[1722271608685,3.05109,3277.6,3276.9,0.595251]
[1722271608977,3.0,3278.3,3276.9,0.595251]
[1722271609196,3.05067,3278.0,3276.7,2.3644]
[1722271609355,3.05049,3278.2,3276.7,2.3644]
[1722271609551,3.05142,3277.2,3276.2,3.05227]
[1722271609794,3.05142,3277.2,3276.3,3.0]
[1722271609970,3.05142,3277.2,3276.4,3.657342]
[1722271610309,3.05148,3277.1,3276.4,0.605222]
[1722271610456,3.05096,3277.7,3276.4,0.605222]
[1722271610653,3.05107,3277.6,3276.6,3.05188]
[1722271610859,3.05107,3277.6,3276.8,3.05172]
[1722271611055,3.05096,3277.7,3276.8,3.05172]
[1722271611405,5.3842,3278.5,3277.1,2.4163]
[1722271611406,3.05058,3278.1,3277.1,2.4163]
[1722271611563,3.0502,3278.5,3277.2,0.24163]
[1722271611764,3.05069,3278.0,3277.2,0.24163]
[1722271612165,3.0509,3277.8,3277.2,0.24163]
[1722271612365,3.05087,3277.8,3277.2,0.24163]
[1722271612596,3.05028,3278.4,3277.3,0.265793]
[1722271612597,3.05056,3278.1,3277.3,0.265793]
[1722271612904,3.05056,3278.1,3277.3,3.317003]
[1722271613055,3.05078,3277.9,3277.3,0.265793]
[1722271613256,3.05066,3278.0,3277.3,0.265793]
[1722271613496,3.05078,3277.9,3277.4,0.3317173]
[1722271613788,3.05057,3278.1,3277.3,3.317083]
[1722271614158,3.05081,3277.9,3277.3,0.265793]
[1722271614766,3.05056,3278.1,3277.3,0.265793]
[1722271614997,3.05074,3277.9,3277.3,0.265793]
[1722271615899,3.05056,3278.1,3277.3,0.265793]
[1722271616087,3.05061,3278.1,3277.4,0.3317163]
[1722271616407,3.05059,3278.1,3277.4,3.3828863]
[1722271616915,3.0506,3278.1,3277.4,0.3317163]
[1722271617125,3.05066,3278.0,3277.4,0.3317163]
[1722271617774,3.05075,3277.9,3277.4,0.3317163]
[1722271617970,3.0506,3278.1,3277.4,0.3317163]
[1722271618199,3.05041,3278.3,3277.4,0.3317163]
[1722271618200,3.05046,3278.2,3277.5,0.36487793]
[1722271618512,3.05046,3278.2,3277.5,3.41596793]
[1722271619344,3.05046,3278.2,3277.5,0.36487793]
[1722271620011,3.05027,3278.4,3277.6,3.05096]
[1722271620323,3.05027,3278.4,3277.7,3.0509]
[1722271620486,5.43384,3279.1,3277.7,0.65278426]
[1722271620487,3.05045,3278.3,3277.7,0.65278426]
[1722271620813,3.05065,3278.0,3277.3,0.265793]
[1722271621017,3.05073,3277.9,3277.3,0.265793]
[1722271621375,3.0502,3278.5,3276.8,5.3875]
[1722271621376,3.782,3278.5,3276.8,5.3875]
[1722271621589,3.05143,3277.2,3276.8,2.3875]
[1722271621821,3.05126,3277.4,3276.8,2.3875]
[1722271621977,3.05139,3277.2,3276.4,3.0521]
[1722271622173,3.05139,3277.2,3276.5,0.54082]
[1722271622174,3.05138,3277.2,3276.5,0.54082]
[1722271622373,3.05076,3277.9,3276.5,0.54082]
[1722271622686,3.05135,3277.3,3276.3,2.3561]
[1722271622886,3.05135,3277.3,3276.4,3.05206]
[1722271623309,3.05108,3277.6,3276.7,3.05182]
[1722271623507,3.0511,3277.5,3276.8,0.06102786]
[1722271623672,3.782,3278.5,3276.8,0.37231665]
[1722271623673,3.05099,3277.7,3276.8,0.37231665]
[1722271623880,3.05068,3278.0,3277.0,3.05151]
[1722271623881,3.05083,3277.8,3277.0,3.05151]
[1722271624081,3.05083,3277.8,3276.9,0.06102376]
[1722271624384,3.05083,3277.8,3276.6,3.05191]
[1722271624385,3.05116,3277.5,3276.7,3.05184]
[1722271624953,3.05092,3277.7,3276.7,3.05184]
[1722271624954,3.05108,3277.6,3276.7,3.05184]
[1722271625086,3.05095,3277.7,3276.9,3.05165]
[1722271625281,3.05095,3277.7,3276.8,0.36620964]
[1722271625282,3.05102,3277.6,3276.8,0.36620964]
[1722271625552,3.782,3278.5,3276.8,0.36620961]
[1722271625719,3.05098,3277.7,3276.8,0.06102561]
[1722271625884,3.782,3278.5,3276.8,0.06102561]
[1722271626221,3.05077,3277.9,3277.1,6.1028]
[1722271626383,3.05077,3277.9,3277.2,0.06102094]
[1722271626733,3.05073,3277.9,3277.3,0.61638209]
[1722271626875,3.05064,3278.0,3277.3,0.61638209]
[1722271627320,3.05074,3277.9,3277.3,0.61638209]
[1722271627542,3.05092,3277.7,3277.3,0.61638209]
[1722271627839,3.05092,3277.7,3276.9,3.60163]
[1722271627840,3.05074,3277.9,3277.0,3.0]
[1722271627974,3.0511,3277.6,3276.9,0.55]
[1722271628175,3.05112,3277.5,3276.9,0.55]
[1722271628532,3.05106,3277.6,3276.8,0.55]
[1722271628820,3.0511,3277.5,3276.9,0.360181]
[1722271629023,3.05088,3277.8,3276.9,3.411751]
[1722271629176,3.05088,3277.8,3276.9,3.05157]
[1722271629413,3.05079,3277.9,3277.0,3.0515]
[1722271629612,3.05079,3277.9,3277.0,3.05149]
[1722271629852,3.05082,3277.9,3277.1,3.41760124]
[1722271630518,3.05073,3277.9,3277.2,3.05137]
[1722271630717,3.05029,3278.4,3277.3,2.50402092]
[1722271631052,3.05032,3278.4,3277.3,5.55526092]
[1722271631226,1.05641372,3278.3,3277.6,3.051]
[1722271631426,3.05032,3278.4,3277.7,0.0610111]
[1722271631635,1.05641133,3278.3,3277.7,0.0610111]
[1722271631951,3.05032,3278.4,3277.7,0.0610111]
[1722271632326,3.05054,3278.2,3277.4,1.10552609]
[1722271632536,1.05640329,3278.1,3277.5,0.35485261]
[1722271632776,3.05057,3278.1,3277.5,0.35485261]
[1722271632952,3.782,3278.9,3277.5,0.35485261]
[1722271633159,3.05032,3278.4,3277.5,3.40594261]
[1722271633357,2.2547,3279.1,3277.5,3.40594261]
[1722271633358,1.05648145,3278.3,3277.7,3.0509]
[1722271633524,3.05025,3278.5,3277.7,0.06101128]
[1722271633728,3.04985,3278.9,3278.1,3.05049]
[1722271633927,3.04962,3279.1,3278.4,3.05024]
[1722271634127,1.05613173,3279.0,3278.4,3.05024]
[1722271634366,2.47142,3279.6,3278.4,3.91363753]
[1722271634367,3.04952,3279.2,3278.4,3.91363753]
[1722271634599,4.1057947,3279.1,3278.4,3.91363753]
[1722271634749,3.04962,3279.1,3278.4,3.91363753]
[1722271635187,3.04971,3279.0,3278.4,0.86339753]
[1722271635364,3.04962,3279.1,3278.2,2.4723]
[1722271635365,3.04986,3278.9,3278.2,2.4723]
[1722271635720,3.05024,3278.5,3277.7,3.05084]
[1722271635866,3.782,3279.3,3277.9,3.05065]
[1722271635867,3.04982,3278.9,3277.9,3.05065]
[1722271636193,3.04982,3278.9,3278.2,3.05045]
[1722271636498,3.05,3278.7,3278.3,0.305045]
[1722271636670,3.05023,3278.5,3277.9,3.0]
[1722271636879,3.782,3278.9,3277.6,2.375]
[1722271637173,3.04953,3279.2,3277.7,3.11185262]
[1722271637174,3.05015,3278.6,3277.7,3.11185262]
[1722271637359,3.05015,3278.6,3277.8,3.05076]
[1722271637569,3.0499,3278.8,3277.7,0.06101262]
[1722271637570,3.04993,3278.8,3277.7,0.06101163]
[1722271637747,3.0501,3278.6,3277.8,3.62675269]
[1722271637947,3.05018,3278.5,3277.8,0.57599269]
[1722271638196,3.04992,3278.8,3277.8,3.62675269]
[1722271638197,3.05008,3278.6,3277.8,3.62675269]
[1722271638374,3.04974,3279.0,3278.0,3.05063]
[1722271638574,3.04997,3278.8,3278.1,0.31116416]
[1722271638786,3.04994,3278.8,3277.8,0.57599269]
[1722271638987,3.04994,3278.8,3277.6,2.64798526]
[1722271638988,0.6220567,3279.5,3278.0,3.05055]
[1722271639187,2.6086815,3279.4,3278.1,0.06100317]
[1722271639358,3.04995,3278.8,3278.1,3.11153317]
[1722271639690,3.04978,3279.0,3278.2,3.05043]
[1722271639895,3.04978,3279.0,3278.3,0.36604332]
[1722271639896,3.04971,3279.0,3278.3,0.36604332]
[1722271640198,3.04956,3279.2,3278.3,0.305043]
[1722271640359,3.04978,3279.0,3278.3,3.41639334]
[1722271640695,3.04967,3279.1,3278.3,0.36604334]
[1722271640853,3.04967,3279.1,3278.4,0.34164833]
[1722271641053,3.04946,3279.3,3278.5,3.11116694]
[1722271641308,0.77168018,3279.6,3278.5,3.11116694]
[1722271641603,3.04934,3279.4,3278.7,3.04998]
[1722271641808,0.14562,3279.6,3278.7,3.11097272]
[1722271641949,0.14562,3279.6,3278.8,3.42191812]
[1722271642149,0.14562,3279.6,3278.8,0.37208812]
[1722271642397,0.14562,3279.6,3278.8,0.06099085]
[1722271642602,0.14562,3279.6,3278.6,3.0]
[1722271642603,0.14562,3279.6,3278.5,5.53726]
[1722271642902,3.04937,3279.4,3278.6,6.60004]
[1722271643055,0.14562,3279.6,3278.5,2.4871]
[1722271643713,3.04984,3278.9,3278.1,3.0]
[1722271643997,3.04984,3278.9,3278.2,0.840421]
[1722271644206,3.05023,3278.5,3278.0,2.3536]
[1722271644360,0.62614884,3279.2,3278.0,2.3536]
[1722271644361,3.04992,3278.8,3278.0,2.3536]
[1722271644558,3.04992,3278.8,3278.0,5.40418]
[1722271644800,3.04992,3278.8,3278.0,3.199099]
[1722271644996,0.62614884,3279.2,3278.1,0.06100816]
[1722271645198,3.04959,3279.2,3278.1,0.06100368]
[1722271645542,0.14562,3279.6,3278.9,5.38588]
[1722271645658,0.14562,3279.6,3279.0,0.843572]
[1722271645874,0.14562,3279.6,3279.0,3.11067818]
[1722271646368,0.14562,3279.6,3279.0,0.06098818]
[1722271646563,0.14562,3279.6,3279.2,3.04946]
[1722271646764,0.14562,3279.6,3279.3,0.06098208]
[1722271647393,0.14562,3279.6,3278.9,2.3361]
[1722271647716,0.14562,3279.6,3278.4,2.2537]
[1722271647717,3.0494,3279.4,3278.4,2.2537]
[1722271647926,0.93922326,3280.3,3278.4,2.2537]
[1722271647927,2.4842092,3282.7,3281.5,2.2537]
[1722271648091,2.4842092,3282.7,3279.5,2.833]
[1722271648092,0.63923553,3283.8,3282.6,8.10636]
[1722271648303,12.25586,3285.5,3282.2,0.95508513]
[1722271648304,0.94178096,3285.0,3284.5,8.3429]
[1722271648615,0.94178096,3285.0,3284.9,6.08846]
[1722271648616,0.00182554,3285.0,3284.9,6.08846]
[1722271648817,3.04239,3286.9,3284.9,2.833]
[1722271648985,3.04228,3287.0,3285.0,6.177264]
[1722271649184,0.14668789,3288.2,3285.4,3.04376]
[1722271649185,3.762,3287.4,3285.4,3.04376]
[1722271649379,3.762,3287.4,3285.3,3.67787571]
[1722271649578,3.762,3287.4,3285.4,5.69146794]
[1722271649579,3.04233,3287.0,3285.4,5.69146794]
[1722271649801,3.04248,3286.8,3285.2,0.63401571]
[1722271650003,3.762,3287.0,3284.5,0.63401571]
[1722271650004,3.762,3285.4,3284.5,0.63401571]
[1722271650210,3.762,3286.4,3283.8,0.63401571]
[1722271650211,3.762,3284.6,3283.8,0.63401571]
[1722271650390,5.39135,3285.6,3283.5,0.63401571]
[1722271650391,2.3477,3285.6,3283.5,0.63401571]
[1722271650598,3.04405,3285.1,3283.6,3.28264018]
[1722271650799,3.04423,3284.9,3283.7,2.64862447]
[1722271651015,3.762,3284.7,3283.5,0.63401571]
[1722271651179,0.304405,3285.0,3283.6,2.64884565]
[1722271651378,3.348565,3285.0,3283.7,2.64884565]
[1722271651618,0.304405,3285.0,3283.8,1.67040103]
[1722271651932,3.04366,3285.6,3284.2,0.63401571]
[1722271652075,3.04353,3285.7,3284.3,3.25959181]
[1722271652278,3.04295,3286.3,3284.3,3.25959181]
[1722271652279,3.04329,3286.0,3284.3,1.24489777]
[1722271652471,3.04349,3285.7,3284.5,0.63401571]
[1722271652712,3.04367,3285.6,3284.6,3.25881281]
[1722271652917,2.2661,3286.4,3284.4,0.36944978]
[1722271652918,3.04301,3286.3,3284.7,1.05917548]
[1722271653223,3.04301,3286.3,3284.1,1.27344684]
[1722271653224,3.04433,3284.8,3283.6,0.63401571]
[1722271653387,4.03,3285.3,3283.7,2.64869438]
[1722271653388,3.04396,3285.2,3283.7,2.64869438]
[1722271653740,4.03,3285.3,3283.8,1.05947775]
[1722271653741,3.04405,3285.1,3283.8,1.05947775]
[1722271654035,5.34025,3285.1,3283.2,0.63401571]
[1722271654316,3.0,3285.2,3283.7,3.04526]
[1722271654317,3.0444,3284.8,3283.7,3.04526]
[1722271654535,3.0445,3284.7,3283.8,1.12051013]
[1722271654759,3.0445,3284.7,3283.9,1.05942145]
[1722271654914,0.304405,3285.0,3284.0,3.10594905]
[1722271655116,3.04404,3285.2,3284.1,3.04497]
[1722271655340,3.04404,3285.2,3284.2,0.0608904]
[1722271655654,5.47307,3285.8,3284.2,0.0608904]
[1722271655655,3.04408,3285.1,3284.2,0.0608904]
[1722271655862,3.04377,3285.4,3284.4,3.04468]
[1722271656159,3.0436,3285.6,3284.5,0.61088317]
[1722271656160,3.0439,3285.3,3284.5,0.61088317]
[1722271656324,3.04369,3285.5,3284.5,0.61088317]
[1722271656529,0.14562,3286.2,3284.2,0.63401571]
[1722271656709,0.14562,3286.2,3284.1,3.0]
[1722271656710,3.04423,3284.9,3284.1,3.0]
[1722271656909,3.04407,3285.1,3284.2,0.55]
[1722271657358,4.03,3285.9,3284.2,0.55]
[1722271657667,3.04415,3285.0,3284.2,0.55]
[1722271657812,3.04357,3285.7,3284.2,0.55]
[1722271657813,3.04402,3285.2,3284.2,0.55]
[1722271658008,0.304402,3285.1,3284.2,3.5948]
[1722271658558,6.36862,3286.2,3284.2,3.5948]
[1722271658559,3.14562,3286.2,3284.3,3.04476]
[1722271658764,0.17550233,3286.1,3284.4,0.55]
[1722271659053,3.0432,3286.1,3284.5,0.06087812]
[1722271659260,0.14562,3286.2,3284.7,2.4179]
[1722271659410,3.18865,3286.2,3284.8,3.34111]
[1722271659769,3.18865,3286.2,3285.6,3.04358]
[1722271659770,0.14562,3286.2,3285.6,3.04358]
[1722271659909,0.14562,3286.2,3285.7,3.0608596]
[1722271660223,0.14562,3286.2,3286.1,3.04312]
[1722271660421,0.14562,3286.2,3286.1,3.65396903]
[1722271660858,0.14562,3286.2,3286.1,6.65396903]
[1722271661231,0.14562,3286.2,3286.1,9.63624]
[1722271661559,0.14562,3286.2,3285.9,2.4676]